lending/lending_fUSD_20250224
["ID","MTS","AMOUNT","RATE_DAILY","PERIOD"]
[354282908,1740393070311,-200.976492,0.00016684,2]
[354282909,1740393070324,-500.0,0.00016684,2]
[354282910,1740393070336,-500.0,0.00016684,2]
[354282911,1740393070355,-500.0,0.00016684,2]
[354282912,1740393070369,-500.0,0.00016684,2]
[354282913,1740393070381,-500.0,0.00016684,2]
[354282914,1740393070393,-500.0,0.00016684,2]
[354282915,1740393070404,-151.0,0.00016684,2]
[354282916,1740393070417,-190.48140659,0.00016684,2]
[354282917,1740393070431,-513.04,0.00016684,2]
[354282918,1740393070445,-240.883023,0.00016684,2]
[354282919,1740393070459,-500.0,0.00016684,2]
[354282920,1740393070472,-500.0,0.00016684,2]
[354282921,1740393070484,-500.0,0.00016684,2]
[354282922,1740393070496,-705.82,0.00016684,2]
[354282923,1740393070510,-500.0,0.00016684,2]
[354282924,1740393070523,-500.0,0.00016684,2]
[354282925,1740393070535,-500.0,0.00016684,2]
[354282926,1740393070547,-426.52767153,0.00016684,2]
[354282927,1740393070560,-500.0,0.00016684,2]
[354282928,1740393070572,-500.0,0.00016684,2]
[354282929,1740393070585,-568.69,0.00016684,2]
[354282930,1740393070597,-500.0,0.00016684,2]
[354282931,1740393070609,-500.0,0.00016684,2]
[354282932,1740393070619,-508.61909493,0.00016684,2]
[354282933,1740393070631,-500.0,0.00016684,2]
[354282934,1740393070646,-500.0,0.00016684,2]
[354282935,1740393070658,-500.0,0.00016684,2]
[354282936,1740393070670,-500.0,0.00016684,2]
[354282937,1740393070680,-500.0,0.00016684,2]
[354282938,1740393070692,-613.91,0.00016684,2]
[354282939,1740393070706,-586.58243788,0.00016684,2]
[354282940,1740393070718,-500.0,0.00016684,2]
[354282941,1740393070730,-500.0,0.00016684,2]
[354282942,1740393070741,-500.0,0.00016684,2]
[354282943,1740393070752,-151.0,0.00016684,2]
[354282944,1740393070765,-357.60647001,0.00016684,2]
[354282945,1740393070776,-500.0,0.00016684,2]
[354282946,1740393070787,-151.0,0.00016684,2]
[354282947,1740393070798,-500.0,0.00016684,2]
[354282948,1740393070811,-187.359585,0.00016684,2]
[354282949,1740393070823,-505.9902376,0.00016684,2]
[354282950,1740393070835,-187.359585,0.00016684,2]
[354282951,1740393070848,-151.0,0.00016684,2]
[354282952,1740393070859,-500.0,0.00016684,2]
[354282953,1740393070871,-591.95519619,0.00016684,2]
[354282954,1740393070883,-500.0,0.00016684,2]
[354282955,1740393070894,-631.23,0.00016684,2]
[354282956,1740393070906,-505.25906748,0.00016684,2]
[354282957,1740393070917,-500.0,0.00016684,2]
[354282958,1740393070929,-151.0,0.00016684,2]
[354282959,1740393070940,-500.0,0.00016684,2]
[354282960,1740393070951,-829.52,0.00016684,2]
[354282961,1740393070962,-614.79,0.00016684,2]
[354282962,1740393070974,-500.0,0.00016684,2]
[354282963,1740393070985,-500.0,0.00016684,2]
[354282964,1740393070998,-579.34,0.00016684,2]
[354282965,1740393071010,-656.83,0.00016684,2]
[354282966,1740393071021,-229.613081,0.00016684,2]
[354282967,1740393071032,-801.72,0.00016684,2]
[354282968,1740393071044,-500.0,0.00016684,2]
[354282969,1740393071056,-229.613081,0.00016684,2]
[354282970,1740393071068,-500.0,0.00016684,2]
[354282971,1740393071079,-500.0,0.00016684,2]
[354282972,1740393071091,-500.0,0.00016684,2]
[354282973,1740393071102,-778.26,0.00016684,2]
[354282974,1740393071113,-812.09,0.00016684,2]
[354282975,1740393071124,-563.47,0.00016684,2]
[354282976,1740393071135,-500.0,0.00016684,2]
[354282977,1740393071146,-500.0,0.00016684,2]
[354282978,1740393071158,-293.16620277,0.00016684,2]
[354282979,1740393071169,-500.0,0.00016684,2]
[354282980,1740393071181,-594.42,0.00016684,2]
[354282981,1740393071193,-1017.59,0.00016684,2]
[354282982,1740393071204,-500.0,0.00016684,2]
[354282983,1740393071216,-1173.0,0.00016684,2]
[354282984,1740393071227,-500.0,0.00016684,2]
[354282985,1740393071238,-500.0,0.00016684,2]
[354282986,1740393071251,-506.82667424,0.00016684,2]
[354282987,1740393071262,-634.49033087,0.00016684,2]
[354282988,1740393071273,-985.36,0.00016684,2]
[354282989,1740393071284,-500.0,0.00016684,2]
[354282990,1740393071295,-714.1,0.00016684,2]
[354282991,1740393071309,-600.21717452,0.00016684,2]
[354282992,1740393071320,-601.34,0.00016684,2]
[354282993,1740393071331,-500.0,0.00016684,2]
[354282994,1740393071343,-500.0,0.00016684,2]
[354282995,1740393071355,-431.15938313,0.00016684,2]
[354282996,1740393071367,-1166.36,0.00016684,2]
[354282997,1740393071379,-500.0,0.00016684,2]
[354282998,1740393071391,-500.0,0.00016684,2]
[354282999,1740393071403,-500.0,0.00016684,2]
[354283000,1740393071414,-500.0,0.00016684,2]
[354283001,1740393071425,-655.58,0.00016684,2]
[354283002,1740393071436,-568.87,0.00016684,2]
[354283003,1740393071448,-500.0,0.00016684,2]
[354283004,1740393071459,-500.0,0.00016684,2]
[354283005,1740393071471,-500.0,0.00016684,2]
[354283006,1740393071482,-500.0,0.00016684,2]
[354283007,1740393071493,-500.0,0.00016684,2]
[354283008,1740393071504,-500.0,0.00016684,2]
[354283009,1740393071515,-500.0,0.00016684,2]
[354283010,1740393071528,-817.86,0.00016684,2]
[354283011,1740393071539,-500.0,0.00016684,2]
[354283012,1740393071550,-500.0,0.00016684,2]
[354283013,1740393071562,-554.61,0.00016684,2]
[354283014,1740393071573,-522.20249065,0.00016684,2]
[354283015,1740393071585,-607.13,0.00016684,2]
[354283016,1740393071596,-299.279106,0.00016684,2]
[354283017,1740393071607,-500.0,0.00016684,2]
[354283018,1740393071618,-587.42,0.00016684,2]
[354283019,1740393071629,-500.0,0.00016684,2]
[354283020,1740393071644,-500.0,0.00016684,2]
[354283021,1740393071656,-500.0,0.00016684,2]
[354283022,1740393071667,-169.31171947,0.00016684,2]
[354283023,1740393071678,-500.0,0.00016684,2]
[354283024,1740393071689,-500.0,0.00016684,2]
[354283025,1740393071700,-976.63,0.00016684,2]
[354283026,1740393071712,-500.0,0.00016684,2]
[354283027,1740393071723,-758.07,0.00016684,2]
[354283028,1740393071734,-327.093108,0.00016684,2]
[354283029,1740393071745,-500.0,0.00016684,2]
[354283030,1740393071757,-912.3,0.00016684,2]
[354283031,1740393071768,-500.0,0.00016684,2]
[354283032,1740393071779,-500.0,0.00016684,2]
[354283033,1740393071790,-966.44,0.00016684,2]
[354283034,1740393071801,-500.0,0.00016684,2]
[354283035,1740393071813,-571.99,0.00016684,2]
[354283036,1740393071824,-583.89,0.00016684,2]
[354283037,1740393071836,-508.91,0.00016684,2]
[354283038,1740393071851,-500.0,0.00016684,2]
[354283039,1740393071862,-160.368063,0.00016684,2]
[354283040,1740393071874,-500.0,0.00016684,2]
[354283041,1740393071886,-500.0,0.00016684,2]
[354283042,1740393071897,-500.0,0.00016684,2]
[354283043,1740393071908,-160.368063,0.00016684,2]
[354283044,1740393071920,-500.0,0.00016684,2]
[354283045,1740393071930,-500.0,0.00016684,2]
[354283046,1740393071942,-825.69,0.00016684,2]
[354283047,1740393071954,-500.0,0.00016684,2]
[354283048,1740393071965,-793.11,0.00016684,2]
[354283049,1740393071977,-568.54,0.00016684,2]
[354283050,1740393071988,-500.0,0.00016684,2]
[354283051,1740393072000,-688.09,0.00016684,2]
[354283052,1740393072012,-500.0,0.00016684,2]
[354283053,1740393072024,-506.39833334,0.00016684,2]
[354283054,1740393072036,-500.0,0.00016684,2]
[354283055,1740393072047,-827.28,0.00016684,2]
[354283056,1740393072060,-500.0,0.00016684,2]
[354283057,1740393072072,-500.0,0.00016684,2]
[354283058,1740393072083,-500.0,0.00016684,2]
[354283059,1740393072095,-500.0,0.00016684,2]
[354283060,1740393072106,-500.0,0.00016684,2]
[354283061,1740393072117,-500.0,0.00016684,2]
[354283062,1740393072128,-501.11,0.00016684,2]
[354283063,1740393072140,-571.55,0.00016684,2]
[354283064,1740393072152,-500.0,0.00016684,2]
[354283065,1740393072164,-590.2,0.00016684,2]
[354283066,1740393072175,-500.0,0.00016684,2]
[354283067,1740393072187,-500.0,0.00016684,2]
[354283068,1740393072199,-500.0,0.00016684,2]
[354283069,1740393072211,-500.0,0.00016684,2]
[354283070,1740393072222,-500.0,0.00016684,2]
[354283071,1740393072233,-500.0,0.00016684,2]
[354283072,1740393072244,-500.0,0.00016684,2]
[354283073,1740393072256,-500.0,0.00016684,2]
[354283074,1740393072267,-500.0,0.00016684,2]
[354283075,1740393072279,-500.0,0.00016684,2]
[354283076,1740393072290,-500.0,0.00016684,2]
[354283077,1740393072302,-500.0,0.00016684,2]
[354283078,1740393072315,-500.0,0.00016684,2]
[354283079,1740393072326,-151.0,0.00016684,2]
[354283080,1740393072338,-500.0,0.00016684,2]
[354283081,1740393072349,-500.0,0.00016684,2]
[354283082,1740393072574,-500.0,0.00016684,2]
[354283083,1740393072620,-500.0,0.00016684,2]
[354283084,1740393072642,-500.0,0.00016684,2]
[354283085,1740393072651,-865.78,0.00016684,2]
[354283086,1740393072660,-792.11,0.00016684,2]
[354283087,1740393072670,-500.0,0.00016684,2]
[354283088,1740393072679,-500.0,0.00016684,2]
[354283089,1740393072688,-500.0,0.00016684,2]
[354283090,1740393072697,-502.07,0.00016684,2]
[354283091,1740393072705,-500.0,0.00016684,2]
[354283092,1740393072713,-732.07,0.00016684,2]
[354283093,1740393072722,-536.67,0.00016684,2]
[354283094,1740393072730,-772.46,0.00016684,2]
[354283095,1740393072739,-500.0,0.00016684,2]
[354283096,1740393072749,-151.0,0.00016684,2]
[354283097,1740393072757,-994.92,0.00016684,2]
[354283098,1740393072766,-500.0,0.00016684,2]
[354283099,1740393072776,-719.27,0.00016684,2]
[354283100,1740393072784,-500.0,0.00016684,2]
[354283101,1740393072793,-500.0,0.00016684,2]
[354283102,1740393072810,-576.942674,0.00016684,2]
[354283103,1740393072819,-500.0,0.00016684,2]
[354283104,1740393072829,-732.94,0.00016684,2]
[354283105,1740393072839,-500.0,0.00016684,2]
[354283106,1740393072850,-576.942674,0.00016684,2]
[354283107,1740393072859,-894.91,0.00016684,2]
[354283108,1740393072869,-835.59,0.00016684,2]
[354283109,1740393072878,-1034.89,0.00016684,2]
[354283110,1740393072887,-500.0,0.00016684,2]
[354283111,1740393072896,-1083.32,0.00016684,2]
[354283112,1740393072905,-500.0,0.00016684,2]
[354283113,1740393072915,-500.0,0.00016684,2]
[354283114,1740393072924,-649.75,0.00016684,2]
[354283115,1740393072934,-547.93,0.00016684,2]
[354283116,1740393072944,-504.63749802,0.00016684,2]
[354283117,1740393072954,-500.0,0.00016684,2]
[354283118,1740393072963,-510.03180644,0.00016684,2]
[354283119,1740393072973,-500.0,0.00016684,2]
[354283120,1740393072983,-500.0,0.00016684,2]
[354283121,1740393072993,-500.0,0.00016684,2]
[354283122,1740393073003,-500.0,0.00016684,2]
[354283123,1740393073012,-689.58,0.00016684,2]
[354283124,1740393073023,-151.0,0.00016684,2]
[354283125,1740393073032,-685.53,0.00016684,2]
[354283126,1740393073042,-500.0,0.00016684,2]
[354283127,1740393073051,-500.0,0.00016684,2]
[354283128,1740393073063,-500.0,0.00016684,2]
[354283129,1740393073073,-500.0,0.00016684,2]
[354283130,1740393073082,-500.0,0.00016684,2]
[354283131,1740393073092,-500.0,0.00016684,2]
[354283132,1740393073101,-255.20690952,0.00016684,2]
[354283133,1740393073110,-500.0,0.00016684,2]
[354283134,1740393073119,-356.65586116,0.00016684,2]
[354283135,1740393073128,-500.0,0.00016684,2]
[354283136,1740393073137,-770.75,0.00016684,2]
[354283137,1740393073146,-596.16,0.00016684,2]
[354283138,1740393073156,-1066.15,0.00016684,2]
[354283139,1740393073166,-329.20162558,0.00016684,2]
[354283140,1740393073175,-939.56,0.00016684,2]
[354283141,1740393073184,-535.53,0.00016684,2]
[354283142,1740393073194,-500.0,0.00016684,2]
[354283143,1740393073203,-500.0,0.00016684,2]
[354283144,1740393073212,-1713.16,0.00016684,2]
[354283145,1740393073221,-999.11,0.00016684,2]
[354283146,1740393073230,-545.3,0.00016684,2]
[354283147,1740393073240,-426.80721488,0.00016684,2]
[354283148,1740393073249,-988.44,0.00016684,2]
[354283149,1740393073258,-1914.59,0.00016684,2]
[354283150,1740393073267,-1771.19,0.00016684,2]
[354283151,1740393073276,-205.106864,0.00016684,2]
[354283152,1740393073285,-500.0,0.00016684,2]
[354283153,1740393073294,-151.0,0.00016684,2]
[354283154,1740393073304,-205.106864,0.00016684,2]
[354283155,1740393073315,-513.40102441,0.00016684,2]
[354283156,1740393073324,-2047.21,0.00016684,2]
[354283157,1740393073333,-4053.22,0.00016684,2]
[354283158,1740393073342,-857.92,0.00016684,2]
[354283159,1740393073351,-1114.15,0.00016684,2]
[354283160,1740393073361,-507.52,0.00016684,2]
[354283161,1740393073371,-760.3,0.00016684,2]
[354283162,1740393073380,-1134.98,0.00016684,2]
[354283163,1740393073390,-164.410286,0.00016684,2]
[354283164,1740393073400,-1537.05,0.00016684,2]
[354283165,1740393073411,-500.0,0.00016684,2]
[354283166,1740393073421,-164.410286,0.00016684,2]
[354283167,1740393073432,-2359.95,0.00016684,2]
[354283168,1740393073442,-1103.35,0.00016684,2]
[354283169,1740393073452,-242.118806,0.00016684,2]
[354283170,1740393073463,-151.0,0.00016684,2]
[354283171,1740393073473,-367.23083775,0.00016684,2]
[354283172,1740393073484,-4184.04,0.00016684,2]
[354283173,1740393073495,-242.118806,0.00016684,2]
[354283174,1740393073507,-1851.33,0.00016684,2]
[354283175,1740393073518,-527.16740436,0.00016684,2]
[354283176,1740393073528,-2354.25,0.00016684,2]
[354283177,1740393073537,-613.1,0.00016684,2]
[354283178,1740393073548,-971.17,0.00016684,2]
[354283179,1740393073561,-3563.69,0.00016684,2]
[354283180,1740393073571,-500.0,0.00016684,2]
[354283181,1740393073581,-500.0,0.00016684,2]
[354283182,1740393073591,-2009.96,0.00016684,2]
[354283183,1740393073601,-500.0,0.00016684,2]
[354283184,1740393073613,-1543.4,0.00016684,2]
[354283185,1740393073623,-533.77,0.00016684,2]
[354283186,1740393073633,-633.74,0.00016684,2]
[354283187,1740393073643,-2242.87,0.00016684,2]
[354283188,1740393073656,-500.0,0.00016684,2]
[354283189,1740393073667,-1803.65,0.00016684,2]
[354283190,1740393073678,-500.0,0.00016684,2]
[354283191,1740393073689,-2187.68,0.00016684,2]
[354283192,1740393073699,-728.65,0.00016684,2]
[354283193,1740393073709,-6441.69,0.00016684,2]
[354283194,1740393073719,-530.59,0.00016684,2]
[354283195,1740393073729,-552.52,0.00016684,2]
[354283196,1740393073739,-500.0,0.00016684,2]
[354283197,1740393073748,-1823.33,0.00016684,2]
[354283198,1740393073759,-500.0,0.00016684,2]
[354283199,1740393073769,-580.19,0.00016684,2]
[354283200,1740393073779,-2359.28,0.00016684,2]
[354283201,1740393073790,-500.0,0.00016684,2]
[354283202,1740393073803,-500.0,0.00016684,2]
[354283203,1740393073815,-6310.46,0.00016684,2]
[354283204,1740393073825,-1453.83,0.00016684,2]
[354283205,1740393073836,-1754.56,0.00016684,2]
[354283206,1740393073848,-151.0,0.00016684,2]
[354283207,1740393073858,-2395.13,0.00016684,2]
[354283208,1740393073868,-500.0,0.00016684,2]
[354283209,1740393073880,-500.0,0.00016684,2]
[354283210,1740393073892,-500.0,0.00016684,2]
[354283211,1740393073903,-1530.26,0.00016684,2]
[354283212,1740393073914,-1729.98,0.00016684,2]
[354283213,1740393073926,-523.34,0.00016684,2]
[354283214,1740393073937,-851.1318,0.00016684,2]
[354283215,1740393073948,-851.1318,0.00016684,2]
[354283216,1740393073959,-1888.7,0.00016684,2]
[354283217,1740393073969,-887.15,0.00016684,2]
[354283218,1740393073979,-561.68,0.00016684,2]
[354283219,1740393073989,-500.0,0.00016684,2]
[354283220,1740393073998,-851.1318,0.00016684,2]
[354283221,1740393074008,-851.1318,0.00016684,2]
[354283222,1740393074018,-1893.25,0.00016684,2]
[354283223,1740393074028,-1229.83,0.00016684,2]
[354283224,1740393074038,-500.0,0.00016684,2]
[354283225,1740393074048,-1592.71,0.00016684,2]
[354283226,1740393074059,-1352.31,0.00016684,2]
[354283227,1740393074069,-2122.57,0.00016684,2]
[354283228,1740393074078,-1563.39,0.00016684,2]
[354283229,1740393074088,-3181.44,0.00016684,2]
[354283230,1740393074098,-500.0,0.00016684,2]
[354283231,1740393074108,-931.35,0.00016684,2]
[354283232,1740393074118,-1364.19,0.00016684,2]
[354283233,1740393074128,-1399.69,0.00016684,2]
[354283234,1740393074138,-947.59,0.00016684,2]
[354283235,1740393074147,-1158.15,0.00016684,2]
[354283236,1740393074157,-1055.82,0.00016684,2]
[354283237,1740393074166,-1335.01,0.00016684,2]
[354283238,1740393074175,-1743.38,0.00016684,2]
[354283239,1740393074185,-1124.16,0.00016684,2]
[354283240,1740393074195,-1245.15,0.00016684,2]
[354283241,1740393074205,-862.87,0.00016684,2]
[354283242,1740393074215,-737.22,0.00016684,2]
[354283243,1740393074224,-3379.84,0.00016684,2]
[354283244,1740393074234,-2190.52,0.00016684,2]
[354283245,1740393074244,-500.0,0.00016684,2]
[354283246,1740393074254,-1993.18,0.00016684,2]
[354283247,1740393074264,-2255.32,0.00016684,2]
[354283248,1740393074274,-2112.38,0.00016684,2]
[354283249,1740393074284,-1406.66,0.00016684,2]
[354283250,1740393074294,-511.28,0.00016684,2]
[354283251,1740393074303,-1338.87,0.00016684,2]
[354283252,1740393074314,-1163.78,0.00016684,2]
[354283253,1740393074321,-899.89,0.00016684,2]
[354283254,1740393074329,-2575.6,0.00016684,2]
[354283255,1740393074336,-500.0,0.00016684,2]
[354283256,1740393074343,-1931.36,0.00016684,2]
[354283257,1740393074350,-651.74,0.00016684,2]
[354283258,1740393074356,-500.0,0.00016684,2]
[354283259,1740393074364,-3875.26,0.00016684,2]
[354283260,1740393074371,-714.88,0.00016684,2]
[354283261,1740393074378,-4627.1,0.00016684,2]
[354283262,1740393074386,-2331.1,0.00016684,2]
[354283263,1740393074394,-794.55,0.00016684,2]
[354283264,1740393074402,-811.87,0.00016684,2]
[354283265,1740393074413,-1360.35,0.00016684,2]
[354283266,1740393074423,-757.29,0.00016684,2]
[354283267,1740393074433,-500.0,0.00016684,2]
[354283268,1740393074443,-500.0,0.00016684,2]
[354283269,1740393074452,-500.0,0.00016684,2]
[354283270,1740393074462,-1905.52,0.00016684,2]
[354283271,1740393074472,-1832.68,0.00016684,2]
[354283272,1740393074482,-500.0,0.00016684,2]
[354283273,1740393074491,-1012.51,0.00016684,2]
[354283274,1740393074500,-500.0,0.00016684,2]
[354283275,1740393074510,-192.19386567,0.00016684,2]
[354283276,1740393074521,-1130.11,0.00016684,2]
[354283277,1740393074530,-500.0,0.00016684,2]
[354283278,1740393074540,-2153.01,0.00016684,2]
[354283279,1740393074549,-500.0,0.00016684,2]
[354283280,1740393074561,-1435.16,0.00016684,2]
[354283281,1740393074571,-2176.8,0.00016684,2]
[354283282,1740393074582,-151.0,0.00016684,2]
[354283283,1740393074591,-156.024021,0.00016684,2]
[354283284,1740393074602,-500.0,0.00016684,2]
[354283285,1740393074612,-1895.66,0.00016684,2]
[354283286,1740393074622,-683.14,0.00016684,2]
[354283287,1740393074632,-500.0,0.00016684,2]
[354283288,1740393074643,-500.0,0.00016684,2]
[354283289,1740393074654,-500.0,0.00016684,2]
[354283290,1740393074665,-1239.34,0.00016684,2]
[354283291,1740393074676,-2117.99,0.00016684,2]
[354283292,1740393074687,-2225.26,0.00016684,2]
[354283293,1740393074698,-312.393513,0.00016684,2]
[354283294,1740393074709,-312.393513,0.00016684,2]
[354283295,1740393074720,-1435.64,0.00016684,2]
[354283296,1740393074731,-876.4,0.00016684,2]
[354283297,1740393074742,-1250.73,0.00016684,2]
[354283298,1740393074753,-1238.73,0.00016684,2]
[354283299,1740393074765,-312.393513,0.00016684,2]
[354283300,1740393074776,-312.393513,0.00016684,2]
[354283301,1740393074787,-1448.82,0.00016684,2]
[354283302,1740393074798,-151.0,0.00016684,2]
[354283303,1740393074809,-460.06652771,0.00016684,2]
[354283304,1740393074820,-1222.74,0.00016684,2]
[354283305,1740393074830,-500.0,0.00016684,2]
[354283306,1740393074843,-2133.06,0.00016684,2]
[354283307,1740393074854,-500.0,0.00016684,2]
[354283308,1740393074864,-902.39,0.00016684,2]
[354283309,1740393074875,-2952.34,0.00016684,2]
[354283310,1740393074887,-478.14356717,0.00016684,2]
[354283311,1740393074898,-637.55,0.00016684,2]
[354283312,1740393074909,-1714.23,0.00016684,2]
[354283313,1740393074922,-1345.12,0.00016684,2]
[354283314,1740393074932,-455.827672,0.00016684,2]
[354283315,1740393074942,-455.827672,0.00016684,2]
[354283316,1740393074951,-500.0,0.00016684,2]
[354283317,1740393074961,-1346.53,0.00016684,2]
[354283318,1740393074971,-500.0,0.00016684,2]
[354283319,1740393074980,-1153.09,0.00016684,2]
[354283320,1740393074990,-500.0,0.00016684,2]
[354283321,1740393075000,-455.827672,0.00016684,2]
[354283322,1740393075010,-1050.72,0.00016684,2]
[354283323,1740393075019,-455.827672,0.00016684,2]
[354283324,1740393075028,-1549.23,0.00016684,2]
[354283325,1740393075037,-500.0,0.00016684,2]
[354283326,1740393075047,-709.856055,0.00016684,2]
[354283327,1740393075056,-709.856055,0.00016684,2]
[354283328,1740393075066,-500.0,0.00016684,2]
[354283329,1740393075075,-2116.78,0.00016684,2]
[354283330,1740393075084,-709.856055,0.00016684,2]
[354283331,1740393075093,-1323.73,0.00016684,2]
[354283332,1740393075102,-968.02,0.00016684,2]
[354283333,1740393075111,-709.856055,0.00016684,2]
[354283334,1740393075121,-1976.05,0.00016684,2]
[354283335,1740393075131,-500.0,0.00016684,2]
[354283336,1740393075141,-2709.27,0.00016684,2]
[354283337,1740393075150,-500.0,0.00016684,2]
[354283338,1740393075160,-500.0,0.00016684,2]
[354283339,1740393075171,-1417.13,0.00016684,2]
[354283340,1740393075180,-649.11,0.00016684,2]
[354283341,1740393075189,-500.0,0.00016684,2]
[354283342,1740393075198,-500.0,0.00016684,2]
[354283343,1740393075208,-500.0,0.00016684,2]
[354283344,1740393075217,-517.98,0.00016684,2]
[354283345,1740393075226,-1383.1,0.00016684,2]
[354283346,1740393075235,-575.9,0.00016684,2]
[354283347,1740393075245,-639.53,0.00016684,2]
[354283348,1740393075254,-2137.13,0.00016684,2]
[354283349,1740393075263,-1329.85,0.00016684,2]
[354283350,1740393075272,-2522.02,0.00016684,2]
[354283351,1740393075282,-500.0,0.00016684,2]
[354283352,1740393075291,-1057.9,0.00016684,2]
[354283353,1740393075300,-500.0,0.00016684,2]
[354283354,1740393075311,-2173.78,0.00016684,2]
[354283355,1740393075320,-500.0,0.00016684,2]
[354283356,1740393075330,-295.0037,0.00016688,7]
[354283357,1740393075339,-927.18,0.00016705,2]
[354283358,1740393075349,-201.0,0.0001671,2]
[354283359,1740393075358,-205.0,0.0001671,2]
[354283360,1740393075368,-1000.0,0.00016712,6]
[354283361,1740393075378,-398.86,0.00016712,2]
[354283362,1740393075388,-150.0,0.00016712,2]
[354283363,1740393075397,-150.0,0.00016712,2]
[354283364,1740393075408,-150.0,0.00016712,2]
[354283365,1740393075417,-152.0,0.00016766,7]
[354283366,1740393075426,-151.0,0.00016767,2]
[354283367,1740393075435,-151.0,0.00016767,2]
[354283368,1740393075445,-160.224883,0.00016767,2]
[354283369,1740393075455,-500.0,0.00016767,2]
[354283370,1740393075464,-500.0,0.00016767,2]
[354283371,1740393075473,-151.0,0.00016767,2]
[354283372,1740393075483,-500.0,0.00016767,2]
[354283373,1740393075492,-500.0,0.00016767,2]
[354283374,1740393075501,-252.86748195,0.00016767,2]
[354283375,1740393075510,-500.0,0.00016767,2]
[354283376,1740393075519,-171.901977,0.00016767,2]
[354283377,1740393075528,-500.0,0.00016767,2]
[354283378,1740393075537,-171.901977,0.00016767,2]
[354283379,1740393075546,-253.32260506,0.00016767,2]
[354283380,1740393075555,-151.0,0.00016767,2]
[354283381,1740393075565,-200.976492,0.00016767,2]
[354283382,1740393075574,-500.0,0.00016767,2]
[354283383,1740393075584,-543.85276676,0.00016767,2]
[354283384,1740393075593,-200.976492,0.00016767,2]
[354283385,1740393075602,-500.0,0.00016767,2]
[354283386,1740393075612,-500.0,0.00016767,2]
[354283387,1740393075621,-500.0,0.00016767,2]
[354283388,1740393075630,-500.0,0.00016767,2]
[354283389,1740393075639,-500.0,0.00016767,2]
[354283390,1740393075649,-500.0,0.00016767,2]
[354283391,1740393075658,-151.0,0.00016767,2]
[354283392,1740393075667,-513.04,0.00016767,2]
[354283393,1740393075677,-500.0,0.00016767,2]
[354283394,1740393075686,-500.0,0.00016767,2]
[354283395,1740393075696,-705.82,0.00016767,2]
[354283396,1740393075705,-500.0,0.00016767,2]
[354283397,1740393075714,-500.0,0.00016767,2]
[354283398,1740393075724,-449.14737178,0.00016767,2]
[354283399,1740393075734,-500.0,0.00016767,2]
[354283400,1740393075743,-500.0,0.00016767,2]
[354283401,1740393075752,-568.69,0.00016767,2]
[354283402,1740393075762,-500.0,0.00016767,2]
[354283403,1740393075771,-500.0,0.00016767,2]
[354283404,1740393075781,-500.0,0.00016767,2]
[354283405,1740393075955,-500.0,0.00016767,2]
[354283406,1740393075964,-500.0,0.00016767,2]
[354283407,1740393075973,-613.91,0.00016767,2]